fUST/lending_fUST_20250519
["ID","MTS","AMOUNT","RATE_DAILY","PERIOD"]
[361605899,1747635045782,-430.0,0.00024657,4]
[361605901,1747635045791,-359.78231994,0.00024657,4]
[361605903,1747635045801,-472.42674208,0.00024657,4]
[361605905,1747635045811,-400.40795431,0.00024657,4]
[361605907,1747635045820,-355.79876979,0.00024657,4]
[361605909,1747635045829,-430.0,0.00024657,4]
[361605911,1747635045838,-430.0,0.00024657,4]
[361605913,1747635045847,-472.29242127,0.00024657,4]
[361605915,1747635045857,-430.0,0.00024657,4]
[361605917,1747635045867,-356.01049874,0.00024657,4]
[361605919,1747635045876,-440.0,0.00024657,4]
[361605921,1747635045885,-401.24004066,0.00024657,4]
[361605923,1747635045895,-430.0,0.00024657,4]
[361605925,1747635045905,-278.86046613,0.00024657,4]
[361605927,1747635045915,-430.0,0.00024657,4]
[361605929,1747635045924,-470.0,0.00024657,4]
[361605931,1747635045934,-363.19453954,0.00024657,4]
[361605933,1747635045943,-430.0,0.00024657,4]
[361605935,1747635045952,-470.0,0.00024657,4]
[361605937,1747635045961,-354.78945124,0.00024657,4]
[361605939,1747635045971,-352.7677459,0.00024657,2]
[361605941,1747635045980,-430.0,0.00024657,4]
[361605943,1747635045990,-470.0,0.00024657,4]
[361605945,1747635045999,-504.08116484,0.00024657,4]
[361605947,1747635046009,-491.38910983,0.00024657,4]
[361605949,1747635046018,-430.0,0.00024657,4]
[361605951,1747635046027,-430.0,0.00024657,4]
[361605953,1747635046037,-192.08360853,0.00024657,4]
[361605955,1747635046046,-579.40353552,0.00024657,4]
[361605957,1747635046055,-353.08597425,0.00024657,4]
[361605959,1747635046065,-430.0,0.00024657,4]
[361605961,1747635046075,-323.74744501,0.00024657,4]
[361605963,1747635046084,-182.31345163,0.00024657,4]
[361605965,1747635046094,-372.54456255,0.00024657,4]
[361605967,1747635046103,-369.15354998,0.00024657,4]
[361605969,1747635046112,-430.0,0.00024657,4]
[361605971,1747635046121,-362.12889528,0.00024657,4]
[361605973,1747635046131,-334.19482528,0.00024657,4]
[361605975,1747635046140,-430.0,0.00024657,4]
[361605977,1747635046151,-470.0,0.00024657,4]
[361605979,1747635046160,-195.33330762,0.00024657,4]
[361605981,1747635046170,-353.37231821,0.00024657,4]
[361605983,1747635046179,-463.1680751,0.00024657,4]
[361605985,1747635046189,-430.0,0.00024657,4]
[361605987,1747635046198,-322.2796685,0.00024657,4]
[361605989,1747635046211,-476.12422739,0.00024657,4]
[361605991,1747635046220,-430.0,0.00024657,4]
[361605993,1747635046230,-470.0,0.00024657,4]
[361605995,1747635046239,-400.0,0.00024657,4]
[361605997,1747635046249,-356.55599469,0.00024657,4]
[361605999,1747635046258,-526.60601578,0.00024657,4]
[361606001,1747635046268,-430.0,0.00024657,4]
[361606003,1747635046277,-298.77794567,0.00024657,4]
[361606005,1747635046288,-430.0,0.00024657,4]
[361606007,1747635046297,-470.0,0.00024657,4]
[361606010,1747635046307,-430.0,0.00024657,4]
[361606011,1747635046316,-470.0,0.00024657,4]
[361606013,1747635046325,-430.0,0.00024657,4]
[361606015,1747635046334,-346.66344884,0.00024657,4]
[361606017,1747635046344,-360.41736768,0.00024657,4]
[361606020,1747635046353,-353.43323106,0.00024657,4]
[361606022,1747635046362,-450.0,0.00024657,4]
[361606023,1747635046371,-430.0,0.00024657,4]
[361606025,1747635046380,-434.82690167,0.00024657,4]
[361606027,1747635046390,-165.55412834,0.00024657,4]
[361606029,1747635046403,-430.0,0.00024657,4]
[361606031,1747635046413,-430.0,0.00024657,4]
[361606034,1747635046422,-167.96451252,0.00024657,4]
[361606035,1747635046432,-367.17938223,0.00024657,4]
[361606037,1747635046442,-492.86281995,0.00024657,4]
[361606039,1747635046451,-404.1762271,0.00024657,4]
[361606042,1747635046461,-430.0,0.00024657,4]
[361606044,1747635046471,-430.0,0.00024657,4]
[361606045,1747635046480,-430.0,0.00024657,4]
[361606048,1747635046489,-430.0,0.00024657,4]
[361606050,1747635046499,-450.0,0.00024657,4]
[361606052,1747635046508,-430.0,0.00024657,4]
[361606054,1747635046518,-430.0,0.00024657,4]
[361606056,1747635046527,-430.0,0.00024657,4]
[361606058,1747635046537,-430.0,0.00024657,4]
[361606060,1747635046547,-430.0,0.00024657,4]
[361606062,1747635046556,-430.0,0.00024657,4]
[361606064,1747635046565,-430.0,0.00024657,4]
[361606066,1747635046575,-335.67079016,0.00024657,4]
[361606068,1747635046584,-430.0,0.00024657,4]
[361606070,1747635046593,-430.0,0.00024657,4]
[361606072,1747635046602,-430.0,0.00024657,4]
[361606074,1747635046611,-408.11904011,0.00024657,4]
[361606076,1747635046620,-559.65546938,0.00024657,4]
[361606078,1747635046630,-400.0,0.00024657,4]
[361606080,1747635046639,-428.611439,0.00024657,4]
[361606082,1747635046651,-173.07191868,0.00024657,4]
[361606084,1747635046660,-353.5541438,0.00024657,4]
[361606086,1747635046670,-433.19788648,0.00024657,4]
[361606088,1747635046679,-523.13337796,0.00024657,4]
[361606090,1747635046688,-322.74355113,0.00024657,4]
[361606092,1747635046697,-361.4699785,0.00024657,4]
[361606094,1747635046706,-430.0,0.00024657,4]
[361606096,1747635046716,-430.0,0.00024657,4]
[361606098,1747635046726,-430.0,0.00024657,4]
[361606100,1747635046735,-430.0,0.00024657,4]
[361606102,1747635046744,-504.90901908,0.00024657,4]
[361606104,1747635046753,-444.98008008,0.00024657,4]
[361606106,1747635046763,-430.0,0.00024657,4]
[361606108,1747635046772,-430.0,0.00024657,4]
[361606110,1747635046782,-430.0,0.00024657,4]
[361606112,1747635046792,-471.97075489,0.00024657,4]
[361606114,1747635046801,-176.83503069,0.00024657,4]
[361606116,1747635046810,-352.91279948,0.00024657,4]
[361606118,1747635046820,-400.0,0.00024657,4]
[361606120,1747635046829,-402.17276894,0.00024657,4]
[361606122,1747635046838,-430.0,0.00024657,4]
[361606124,1747635046848,-332.34891208,0.00024657,4]
[361606126,1747635046857,-430.0,0.00024657,4]
[361606128,1747635046867,-430.0,0.00024657,4]
[361606130,1747635046876,-440.0,0.00024657,4]
[361606132,1747635046886,-430.0,0.00024657,4]
[361606135,1747635046896,-354.40258361,0.00024657,4]
[361606137,1747635046905,-333.7652332,0.00024657,4]
[361606138,1747635046915,-570.7143141,0.00024657,4]
[361606140,1747635046924,-430.0,0.00024657,4]
[361606142,1747635046933,-430.0,0.00024657,4]
[361606144,1747635046943,-440.0,0.00024657,4]
[361606146,1747635046952,-430.0,0.00024657,4]
[361606148,1747635046961,-470.0,0.00024657,4]
[361606150,1747635046970,-400.0,0.00024657,4]
[361606152,1747635046979,-367.63152339,0.00024657,4]
[361606154,1747635046988,-457.49554221,0.00024657,4]
[361606156,1747635046998,-542.06559004,0.00024657,4]
[361606158,1747635047007,-199.97183698,0.00024657,4]
[361606161,1747635047016,-407.01349586,0.00024657,4]
[361606162,1747635047026,-430.0,0.00024657,4]
[361606164,1747635047035,-470.0,0.00024657,4]
[361606167,1747635047045,-354.71493022,0.00024657,4]
[361606168,1747635047054,-430.0,0.00024657,4]
[361606169,1747635047063,-375.83552925,0.00024657,4]
[361606170,1747635047073,-400.0,0.00024657,4]
[361606171,1747635047082,-411.27,0.00024657,4]
[361606172,1747635047091,-406.90953153,0.00024657,4]
[361606173,1747635047101,-430.0,0.00024657,4]
[361606174,1747635047110,-470.0,0.00024657,4]
[361606175,1747635047119,-501.41210222,0.00024657,4]
[361606176,1747635047129,-430.0,0.00024657,4]
[361606177,1747635047138,-376.47959519,0.00024657,4]
[361606178,1747635047148,-430.0,0.00024657,4]
[361606179,1747635047157,-430.0,0.00024657,4]
[361606180,1747635047167,-298.79108871,0.00024657,4]
[361606181,1747635047176,-463.15898319,0.00024657,4]
[361606182,1747635047185,-430.0,0.00024657,4]
[361606183,1747635047195,-373.81363843,0.00024657,4]
[361606184,1747635047206,-430.0,0.00024657,4]
[361606185,1747635047215,-324.80952148,0.00024657,4]
[361606186,1747635047225,-342.12383123,0.00024657,4]
[361606187,1747635047234,-430.0,0.00024657,4]
[361606188,1747635047243,-326.98220325,0.00024657,4]
[361606189,1747635047253,-430.0,0.00024657,4]
[361606191,1747635047262,-362.33351198,0.00024657,4]
[361606193,1747635047271,-322.07447063,0.00024657,4]
[361606195,1747635047282,-355.69369084,0.00024657,4]
[361606197,1747635047291,-430.0,0.00024657,4]
[361606199,1747635047300,-430.0,0.00024657,4]
[361606201,1747635047309,-556.35402349,0.00024657,4]
[361606203,1747635047318,-440.0,0.00024657,4]
[361606205,1747635047327,-430.0,0.00024657,4]
[361606207,1747635047337,-430.0,0.00024657,4]
[361606209,1747635047346,-528.11,0.00024657,4]
[361606211,1747635047355,-430.0,0.00024657,4]
[361606213,1747635047364,-430.0,0.00024657,4]
[361606215,1747635047373,-440.0,0.00024657,4]
[361606217,1747635047382,-430.0,0.00024657,4]
[361606218,1747635047392,-324.85600833,0.00024657,4]
[361606221,1747635047402,-430.0,0.00024657,4]
[361606223,1747635047411,-470.0,0.00024657,4]
[361606224,1747635047420,-514.5951689,0.00024657,4]
[361606226,1747635047429,-555.27505378,0.00024657,4]
[361606228,1747635047439,-503.21392208,0.00024657,4]
[361606230,1747635047448,-430.0,0.00024657,4]
[361606232,1747635047457,-469.37981876,0.00024657,4]
[361606234,1747635047466,-430.0,0.00024657,4]
[361606236,1747635047476,-430.0,0.00024657,4]
[361606238,1747635047485,-440.0,0.00024657,4]
[361606240,1747635047494,-430.0,0.00024657,4]
[361606242,1747635047503,-560.81052812,0.00024657,4]
[361606244,1747635047514,-430.0,0.00024657,4]
[361606246,1747635047523,-430.0,0.00024657,4]
[361606248,1747635047531,-302.65671009,0.00024657,4]
[361606250,1747635047540,-430.0,0.00024657,4]
[361606252,1747635047550,-323.39045581,0.00024657,4]
[361606254,1747635047559,-418.97689246,0.00024657,4]
[361606256,1747635047567,-430.0,0.00024657,4]
[361606258,1747635047576,-323.4688397,0.00024657,4]
[361606260,1747635047585,-460.53249556,0.00024657,4]
[361606262,1747635047594,-358.14043723,0.00024657,4]
[361606264,1747635047603,-430.0,0.00024657,4]
[361606266,1747635047613,-470.0,0.00024657,4]
[361606268,1747635047623,-356.99548874,0.00024657,4]
[361606270,1747635047632,-413.27320281,0.00024657,4]
[361606272,1747635047642,-430.0,0.00024657,4]
[361606274,1747635047651,-430.0,0.00024657,4]
[361606276,1747635047660,-298.40589847,0.00024657,4]
[361606278,1747635047669,-430.0,0.00024657,4]
[361606280,1747635047678,-414.74279495,0.00024657,4]
[361606282,1747635047687,-470.0,0.00024657,4]
[361606284,1747635047697,-430.0,0.00024657,4]
[361606286,1747635047706,-430.0,0.00024657,4]
[361606288,1747635047715,-430.0,0.00024657,4]
[361606290,1747635047725,-323.02791763,0.00024657,4]
[361606292,1747635047734,-440.0,0.00024657,4]
[361606294,1747635047743,-430.0,0.00024657,4]
[361606296,1747635047752,-324.05403766,0.00024657,4]
[361606297,1747635047761,-362.78172173,0.00024657,4]
[361606299,1747635047770,-406.69587678,0.00024657,4]
[361606301,1747635047780,-352.23365516,0.00024657,4]
[361606303,1747635047789,-366.63368883,0.00024657,4]
[361606305,1747635047799,-358.21871488,0.00024657,4]
[361606307,1747635047808,-430.0,0.00024657,4]
[361606309,1747635047818,-430.0,0.00024657,4]
[361606311,1747635047827,-430.0,0.00024657,4]
[361606313,1747635047836,-158.39,0.00024657,4]
[361606315,1747635047846,-430.0,0.00024657,4]
[361606317,1747635047855,-421.23889422,0.00024657,4]
[361606319,1747635047864,-430.0,0.00024657,4]
[361606321,1747635047873,-430.0,0.00024657,4]
[361606323,1747635047883,-440.0,0.00024657,4]
[361606325,1747635047892,-430.0,0.00024657,4]
[361606327,1747635047902,-427.65169584,0.00024657,4]
[361606329,1747635047911,-430.0,0.00024657,4]
[361606331,1747635047920,-430.0,0.00024657,4]
[361606333,1747635047930,-440.0,0.00024657,4]
[361606335,1747635047939,-253.47451379,0.00024657,4]
[361606339,1747635047970,-162.30716595,0.00024657,4]
[361606341,1747635047981,-416.07999471,0.00024657,4]
[361606343,1747635047991,-430.0,0.00024657,4]
[361606345,1747635048001,-430.0,0.00024657,4]
[361606347,1747635048011,-440.0,0.00024657,4]
[361606349,1747635048022,-430.0,0.00024657,4]
[361606351,1747635048032,-430.0,0.00024657,4]
[361606353,1747635048042,-251.55093842,0.00024657,4]
[361606355,1747635048052,-27.68489241,0.00024657,4]
[361606359,1747635048090,-402.31510759,0.00024657,4]
[361606361,1747635048100,-323.70554525,0.00024657,4]
[361606363,1747635048111,-430.0,0.00024657,2]
[361606365,1747635048121,-430.0,0.00024657,2]
[361606367,1747635048131,-551.09,0.00024657,2]
[361606369,1747635048143,-430.0,0.00024657,4]
[361606371,1747635048153,-430.0,0.00024657,4]
[361606373,1747635048163,-115.25580199,0.00024657,4]
[361606376,1747635048175,-314.74419801,0.00024657,4]
[361606377,1747635048186,-412.89,0.00024657,4]
[361606379,1747635048196,-430.0,0.00024657,4]
[361606381,1747635048209,-430.0,0.00024657,4]
[361606384,1747635048218,-430.0,0.00024657,4]
[361606385,1747635048228,-440.0,0.00024657,4]
[361606387,1747635048239,-420.0,0.00024657,4]
[361606389,1747635048248,-430.0,0.00024657,4]
[361606391,1747635048258,-420.0,0.00024657,4]
[361606393,1747635048267,-430.0,0.00024657,4]
[361606395,1747635048276,-422.09095317,0.00024657,4]
[361606397,1747635048287,-430.0,0.00024657,4]
[361606399,1747635048296,-323.10989262,0.00024657,4]
[361606401,1747635048305,-430.0,0.00024657,4]
[361606403,1747635048314,-430.0,0.00024657,4]
[361606405,1747635048323,-430.0,0.00024657,4]
[361606407,1747635048333,-295.14403912,0.00024657,4]
[361606409,1747635048342,-347.12367049,0.00024657,4]
[361606412,1747635048361,-452.26476944,0.00024657,4]
[361606414,1747635048371,-430.0,0.00024657,4]
[361606417,1747635048381,-322.22307077,0.00024657,4]
[361606419,1747635048393,-400.0,0.00024657,4]
[361606421,1747635048404,-430.0,0.00024657,4]
[361606423,1747635048413,-423.1109904,0.00024657,4]
[361606425,1747635048422,-430.0,0.00024657,4]
[361606427,1747635048432,-430.0,0.00024657,4]
[361606429,1747635048441,-430.0,0.00024657,4]
[361606431,1747635048450,-389.78138448,0.00024657,4]
[361606433,1747635048459,-430.0,0.00024657,4]
[361606435,1747635048468,-500.04260175,0.00024657,4]
[361606437,1747635048478,-430.0,0.00024657,4]
[361606439,1747635048488,-430.0,0.00024657,4]
[361606441,1747635048497,-452.10988192,0.00024657,4]
[361606443,1747635048506,-450.0,0.00024657,4]
[361606445,1747635048516,-297.48714718,0.00024657,4]
[361606447,1747635048525,-402.29922967,0.00024657,4]
[361606449,1747635048534,-430.0,0.00024657,4]
[361606451,1747635048543,-430.0,0.00024657,4]
[361606453,1747635048553,-430.0,0.00024657,4]
[361606455,1747635048562,-470.0,0.00024657,4]
[361606457,1747635048571,-490.0,0.00024657,4]
[361606459,1747635048580,-430.0,0.00024657,4]
[361606461,1747635048590,-326.77156268,0.00024657,4]
[361606463,1747635048599,-430.0,0.00024657,4]
[361606465,1747635048607,-430.0,0.00024657,4]
[361606467,1747635048617,-430.0,0.00024657,4]
[361606469,1747635048626,-430.0,0.00024657,4]
[361606471,1747635048635,-291.35292346,0.00024657,4]
[361606473,1747635048645,-430.0,0.00024657,4]
[361606475,1747635048654,-359.55657345,0.00024657,4]
[361606477,1747635048663,-321.14101596,0.00024657,4]
[361606479,1747635048672,-411.16615715,0.00024657,4]
[361606481,1747635048681,-430.0,0.00024657,4]
[361606483,1747635048690,-363.37643206,0.00024657,4]
[361606485,1747635048699,-323.9319657,0.00024657,4]
[361606487,1747635048707,-430.0,0.00024657,4]
[361606489,1747635048716,-321.74319885,0.00024657,4]
[361606491,1747635048726,-352.40219566,0.00024657,4]
[361606492,1747635048735,-430.0,0.00024657,4]
[361606494,1747635048744,-347.54607733,0.00024657,4]
[361606497,1747635048754,-350.80341988,0.00024657,4]
[361606499,1747635048764,-430.0,0.00024657,4]
[361606501,1747635048774,-324.45823841,0.00024657,4]
[361606503,1747635048784,-430.0,0.00024657,4]
[361606505,1747635048795,-430.0,0.00024657,4]
[361606507,1747635048806,-430.0,0.00024657,4]
[361606509,1747635048816,-167.31,0.00024657,4]
[361606511,1747635048826,-430.0,0.00024657,4]
[361606513,1747635048836,-430.0,0.00024657,4]
[361606529,1747635048996,-529.85383043,0.00024657,4]
[361606532,1747635049006,-430.0,0.00024657,4]
[361606534,1747635049016,-450.0,0.00024657,4]
[361606535,1747635049026,-430.0,0.00024657,4]
[361606537,1747635049036,-508.46,0.00024657,4]
[361606539,1747635049046,-989.61,0.00024657,4]
[361606542,1747635049055,-356.36666805,0.00024657,4]
[361606543,1747635049064,-989.61,0.00024657,4]
[361606545,1747635049074,-500.0,0.00024657,2]
[361606547,1747635049084,-989.61,0.00024657,4]
[361606549,1747635049093,-461.3527492,0.00024657,4]
[361606551,1747635049105,-989.61,0.00024657,4]
[361606554,1747635049115,-989.61,0.00024657,4]
[361606555,1747635049125,-989.61,0.00024657,4]
[361606557,1747635049135,-989.61,0.00024657,4]
[361606559,1747635049147,-430.0,0.00024657,4]
[361606562,1747635049157,-989.61,0.00024657,4]
[361606564,1747635049167,-347.55352173,0.00024657,4]
[361606565,1747635049176,-989.61,0.00024657,4]
[361606568,1747635049186,-989.61,0.00024657,4]
[361606569,1747635049196,-989.61,0.00024657,4]
[361606572,1747635049208,-989.61,0.00024657,4]
[361606574,1747635049218,-989.61,0.00024657,4]
[361606575,1747635049227,-989.61,0.00024657,4]
[361606577,1747635049237,-400.0,0.00024657,4]
[361606580,1747635049247,-356.66928662,0.00024657,4]
[361606581,1747635049256,-430.0,0.00024657,4]
[361606583,1747635049265,-430.0,0.00024657,4]
[361606586,1747635049275,-223.13573964,0.00024657,4]
[361606588,1747635049287,-430.0,0.00024657,4]
[361606590,1747635049297,-430.0,0.00024657,4]
[361606591,1747635049307,-444.26,0.00024657,4]
[361606594,1747635049316,-357.18450051,0.00024657,4]
[361606596,1747635049326,-430.0,0.00024657,4]
[361606597,1747635049336,-430.0,0.00024657,4]
[361606599,1747635049345,-430.0,0.00024657,4]
[361606601,1747635049355,-430.0,0.00024657,4]
[361606603,1747635049365,-430.0,0.00024657,4]
[361606605,1747635049374,-446.59387786,0.00024657,4]
[361606607,1747635049383,-336.77933704,0.00024657,4]
[361606609,1747635049393,-470.0,0.00024657,4]
[361606611,1747635049403,-322.77845241,0.00024657,4]
[361606613,1747635049412,-532.64848542,0.00024657,4]
[361606615,1747635049422,-351.87120586,0.00024657,4]
[361606617,1747635049431,-430.0,0.00024657,4]
[361606619,1747635049441,-430.0,0.00024657,4]
[361606621,1747635049450,-470.0,0.00024657,4]
[361606623,1747635049460,-204.02649153,0.00024657,4]
[361606625,1747635049470,-351.16622011,0.00024657,4]
[361606627,1747635049479,-430.0,0.00024657,4]
[361606629,1747635049488,-487.44513877,0.00024657,4]
[361606631,1747635049498,-400.0,0.00024657,4]
[361606633,1747635049507,-430.0,0.00024657,4]
[361606635,1747635049516,-430.0,0.00024657,4]
[361606637,1747635049526,-268.38649158,0.00024657,4]
[361606639,1747635049535,-470.0,0.00024657,4]
[361606641,1747635049544,-430.0,0.00024657,4]
[361606643,1747635049554,-356.66884351,0.00024657,4]
[361606645,1747635049563,-430.0,0.00024657,4]
[361606647,1747635049573,-545.21104846,0.00024657,4]
[361606649,1747635049582,-408.66051867,0.00024657,4]
[361606650,1747635049591,-401.31196936,0.00024657,4]
[361606651,1747635049601,-430.0,0.00024657,4]
[361606652,1747635049610,-470.0,0.00024657,4]
[361606653,1747635049619,-430.0,0.00024657,4]
[361606654,1747635049628,-430.0,0.00024657,4]
[361606655,1747635049637,-430.0,0.00024657,4]
[361606656,1747635049649,-430.0,0.00024657,4]
[361606658,1747635049658,-430.0,0.00024657,4]
[361606660,1747635049668,-408.58082486,0.00024657,4]
[361606662,1747635049677,-365.97458137,0.00024657,4]
[361606664,1747635049686,-382.17,0.00024657,4]
[361606666,1747635049695,-430.0,0.00024657,4]
[361606668,1747635049704,-470.0,0.00024657,4]
[361606670,1747635049713,-412.32701915,0.00024657,4]
[361606672,1747635049723,-359.66466835,0.00024657,4]
[361606674,1747635049732,-430.0,0.00024657,4]
[361606676,1747635049741,-359.67713155,0.00024657,4]
[361606678,1747635049751,-470.0,0.00024657,4]
[361606680,1747635049760,-430.0,0.00024657,4]
[361606682,1747635049770,-430.0,0.00024657,4]
[361606684,1747635049779,-430.0,0.00024657,4]
[361606686,1747635049790,-438.19251883,0.00024657,4]
[361606688,1747635049799,-430.0,0.00024657,4]
[361606690,1747635049809,-370.0,0.00024657,4]
[361606692,1747635049818,-430.0,0.00024657,4]
[361606694,1747635049827,-370.12112424,0.00024657,4]
[361606696,1747635049837,-430.0,0.00024657,4]
[361606698,1747635049846,-470.0,0.00024657,4]
[361606700,1747635049855,-430.0,0.00024657,4]
[361606702,1747635049864,-326.28235776,0.00024657,4]
[361606704,1747635049874,-430.0,0.00024657,4]
[361606706,1747635049883,-430.0,0.00024657,4]
[361606708,1747635049895,-350.94557654,0.00024657,4]
[361606710,1747635049904,-430.0,0.00024657,4]
[361606712,1747635049913,-430.0,0.00024657,4]
[361606714,1747635049922,-470.0,0.00024657,4]
[361606716,1747635049931,-430.0,0.00024657,4]
[361606718,1747635049941,-430.0,0.00024657,4]
[361606720,1747635049951,-430.0,0.00024657,4]
[361606722,1747635049960,-430.0,0.00024657,4]
[361606724,1747635049969,-430.0,0.00024657,4]
[361606727,1747635049980,-430.0,0.00024657,4]
[361606729,1747635049989,-430.0,0.00024657,4]
[361606730,1747635049998,-481.02456791,0.00024657,4]
[361606733,1747635050008,-470.0,0.00024657,4]
[361606735,1747635050018,-497.03454111,0.00024657,4]
[361606737,1747635050028,-430.0,0.00024657,4]
[361606739,1747635050037,-430.0,0.00024657,4]
[361606741,1747635050047,-470.0,0.00024657,4]
[361606743,1747635050056,-349.8636417,0.00024657,4]
[361606745,1747635050066,-430.0,0.00024657,4]
[361606747,1747635050075,-430.0,0.00024657,4]
[361606749,1747635050084,-430.0,0.00024657,4]
[361606751,1747635050094,-430.0,0.00024657,4]
[361606753,1747635050103,-430.0,0.00024657,4]
[361606755,1747635050112,-430.0,0.00024657,4]
[361606757,1747635050121,-348.95128806,0.00024657,4]
[361606759,1747635050130,-323.14657951,0.00024657,4]
[361606761,1747635050138,-430.0,0.00024657,4]
[361606763,1747635050149,-470.0,0.00024657,4]
[361606765,1747635050159,-430.0,0.00024657,4]
[361606767,1747635050168,-321.97576273,0.00024657,4]
[361606769,1747635050177,-351.1750609,0.00024657,4]
[361606771,1747635050187,-430.0,0.00024657,4]
[361606773,1747635050197,-470.0,0.00024657,4]
[361606775,1747635050208,-430.0,0.00024657,4]
[361606777,1747635050218,-430.0,0.00024657,4]
[361606779,1747635050227,-440.0,0.00024657,4]
[361606781,1747635050236,-351.82279311,0.00024657,4]
[361606783,1747635050246,-430.0,0.00024657,4]
[361606785,1747635050255,-430.0,0.00024657,4]
[361606787,1747635050264,-393.04167351,0.00024657,4]
[361606789,1747635050274,-430.0,0.00024657,4]
[361606790,1747635050284,-208.90518167,0.00024657,4]
[361606793,1747635050297,-430.0,0.00024657,4]
[361606795,1747635050306,-454.0,0.00024657,4]
[361606797,1747635050316,-430.0,0.00024657,4]
[361606799,1747635050325,-430.0,0.00024657,4]
[361606801,1747635050334,-470.0,0.00024657,4]
[361606803,1747635050344,-430.0,0.00024657,4]
[361606805,1747635050354,-451.57802046,0.00024657,4]
[361606807,1747635050364,-350.79525478,0.00024657,4]
[361606809,1747635050373,-430.0,0.00024657,4]
[361606811,1747635050382,-391.21696724,0.00024657,4]
[361606813,1747635050392,-430.0,0.00024657,4]
[361606815,1747635050403,-430.0,0.00024657,4]
[361606817,1747635050412,-430.0,0.00024657,4]
[361606819,1747635050421,-430.0,0.00024657,4]
[361606821,1747635050430,-430.0,0.00024657,4]
[361606823,1747635050439,-430.0,0.00024657,4]
[361606825,1747635050449,-470.0,0.00024657,4]
[361606827,1747635050458,-430.0,0.00024657,4]
[361606829,1747635050467,-328.70304454,0.00024657,4]
[361606831,1747635050477,-430.0,0.00024657,4]
[361606833,1747635050486,-192.31406421,0.00024657,4]
[361606835,1747635050496,-430.0,0.00024657,4]
[361606837,1747635050505,-193.75,0.00024657,4]
[361606839,1747635050515,-430.0,0.00024657,4]
[361606841,1747635050525,-361.2852411,0.00024657,4]
[361606843,1747635050534,-430.0,0.00024657,4]
[361606845,1747635050544,-430.0,0.00024657,4]
[361606847,1747635050553,-430.0,0.00024657,4]
[361606849,1747635050562,-460.0,0.00024657,4]
[361606851,1747635050572,-269.30897423,0.00024657,4]
[361606853,1747635050581,-389.32631555,0.00024657,4]
[361606855,1747635050591,-430.0,0.00024657,4]
[361606857,1747635050600,-352.76275427,0.00024657,4]
[361606859,1747635050610,-566.69189843,0.00024657,4]
[361606862,1747635050620,-430.0,0.00024657,4]
[361606864,1747635050629,-430.0,0.00024657,4]
[361606865,1747635050639,-430.0,0.00024657,4]
[361606867,1747635050651,-161.14021839,0.00024657,4]
[361606870,1747635050660,-348.2875823,0.00024657,4]
[361606872,1747635050670,-430.0,0.00024657,4]
[361606874,1747635050680,-459.47223641,0.00024657,4]
[361606876,1747635050690,-430.0,0.00024657,4]
[361606878,1747635050700,-420.9218557,0.00024657,4]
[361606880,1747635050710,-430.0,0.00024657,4]
[361606882,1747635050719,-430.0,0.00024657,4]
[361606884,1747635050729,-430.0,0.00024657,4]
[361606886,1747635050739,-430.0,0.00024657,4]
[361606888,1747635050749,-430.0,0.00024657,4]
[361606890,1747635050759,-430.0,0.00024657,4]